[Event "*** Titled Tuesday Blitz"]
[Site "Chess.com"]
[Date "2021.04.27"]
[Round "2"]
[White "Mikhal867"]
[Black "miredenizdogan"]
[Result "1/2-1/2"]
[WhiteElo "2436"]
[BlackElo "2241"]
[TimeControl "180+1"]
[EndTime "10:19:48 PDT"]
[Termination "Game drawn by repetition"]

1. c4 {[%clk 0:02:27.3]} 1... e6 {[%clk 0:03:00.9]} 2. g3 {[%clk 0:02:26.3]}
2... d5 {[%clk 0:03:01.1]} 3. Bg2 {[%clk 0:02:26.3]} 3... Nf6 {[%clk 0:03:01.7]}
4. Nf3 {[%clk 0:02:26.1]} 4... Be7 {[%clk 0:03:02.1]} 5. O-O {[%clk 0:02:25.3]}
5... O-O {[%clk 0:03:02.6]} 6. b3 {[%clk 0:02:24.7]} 6... c5 {[%clk 0:03:01.5]}
7. cxd5 {[%clk 0:02:22]} 7... exd5 {[%clk 0:03:02.4]} 8. d4 {[%clk 0:02:21.5]}
8... b6 {[%clk 0:03:01.9]} 9. Nc3 {[%clk 0:02:19.9]} 9... Bb7 {[%clk 0:03:02.1]}
10. Bb2 {[%clk 0:02:17]} 10... Nc6 {[%clk 0:03:02.5]} 11. e3 {[%clk 0:02:13.7]}
11... Rc8 {[%clk 0:03:00.3]} 12. Qe2 {[%clk 0:02:08.2]} 12... Re8 {[%clk
0:02:48]} 13. dxc5 {[%clk 0:02:07.1]} 13... bxc5 {[%clk 0:02:45.9]} 14. Rfd1
{[%clk 0:02:05.6]} 14... Bf8 {[%clk 0:02:37.2]} 15. Qb5 {[%clk 0:02:01.9]} 15...
Rb8 {[%clk 0:02:21.4]} 16. Nh4 {[%clk 0:01:59.8]} 16... Nb4 {[%clk 0:01:52]} 17.
Rac1 {[%clk 0:01:10.1]} 17... Bc6 {[%clk 0:01:37.9]} 18. Qf1 {[%clk 0:01:04.5]}
18... Qb6 {[%clk 0:01:11.8]} 19. Nf5 {[%clk 0:00:59.2]} 19... g6 {[%clk
0:01:01.8]} 20. Nh4 {[%clk 0:00:53.9]} 20... Rbd8 {[%clk 0:00:54]} 21. a3 {[%clk
0:00:48.3]} 21... Na6 {[%clk 0:00:49.6]} 22. Rb1 {[%clk 0:00:37.3]} 22... d4
{[%clk 0:00:43.5]} 23. exd4 {[%clk 0:00:36.9]} 23... Bxg2 {[%clk 0:00:41]} 24.
Nxg2 {[%clk 0:00:35.5]} 24... cxd4 {[%clk 0:00:40.9]} 25. Na4 {[%clk 0:00:35.4]}
25... Qxb3 {[%clk 0:00:40.9]} 26. Qxa6 {[%clk 0:00:34.2]} 26... Rd6 {[%clk
0:00:26.9]} 27. Qxa7 {[%clk 0:00:33.3]} 27... Re7 {[%clk 0:00:13.2]} 28. Bxd4
{[%clk 0:00:24.8]} 28... Qxd1+ {[%clk 0:00:10.5]} 29. Rxd1 {[%clk 0:00:23.2]}
29... Rxa7 {[%clk 0:00:11.4]} 30. Nc5 {[%clk 0:00:18.1]} 30... Rxa3 {[%clk
0:00:07.3]} 31. Ne3 {[%clk 0:00:17.7]} 31... Nd7 {[%clk 0:00:05.9]} 32. Nxd7
{[%clk 0:00:16.5]} 32... Rxd7 {[%clk 0:00:06.8]} 33. Bb2 {[%clk 0:00:15.2]}
33... Rxd1+ {[%clk 0:00:07.7]} 34. Nxd1 {[%clk 0:00:15]} 34... Rb3 {[%clk
0:00:08.4]} 35. Kg2 {[%clk 0:00:13.1]} 35... Bg7 {[%clk 0:00:08.9]} 36. Bxg7
{[%clk 0:00:12.4]} 36... Kxg7 {[%clk 0:00:09.8]} 37. Ne3 {[%clk 0:00:12.7]}
37... h5 {[%clk 0:00:09.6]} 38. h4 {[%clk 0:00:12.7]} 38... f5 {[%clk
0:00:09.6]} 39. Nd5 {[%clk 0:00:12.1]} 39... Ra3 {[%clk 0:00:08.6]} 40. Nf4
{[%clk 0:00:11.8]} 40... Ra2 {[%clk 0:00:09]} 41. Nd5 {[%clk 0:00:11.6]} 41...
Kf7 {[%clk 0:00:08.9]} 42. Kf3 {[%clk 0:00:11.6]} 42... Ke6 {[%clk 0:00:09]} 43.
Nb4 {[%clk 0:00:11.7]} 43... Rb2 {[%clk 0:00:08.2]} 44. Nc6 {[%clk 0:00:10.4]}
44... Rb3+ {[%clk 0:00:07.5]} 45. Kg2 {[%clk 0:00:10.1]} 45... Kf6 {[%clk
0:00:07.7]} 46. Nd4 {[%clk 0:00:09.7]} 46... Rd3 {[%clk 0:00:08.1]} 47. Ne2
{[%clk 0:00:09.1]} 47... Rd2 {[%clk 0:00:07.7]} 48. Nf4 {[%clk 0:00:08.9]} 48...
Rd4 {[%clk 0:00:07.2]} 49. Kf3 {[%clk 0:00:08.2]} 49... Ra4 {[%clk 0:00:07.2]}
50. Ne2 {[%clk 0:00:08]} 50... Ra3+ {[%clk 0:00:06.7]} 51. Kg2 {[%clk 0:00:08]}
51... Ke5 {[%clk 0:00:06.4]} 52. Nf4 {[%clk 0:00:08]} 52... Ra6 {[%clk
0:00:06.5]} 53. Nd3+ {[%clk 0:00:07.8]} 53... Kd4 {[%clk 0:00:05.3]} 54. Nf4
{[%clk 0:00:07.8]} 54... Ke4 {[%clk 0:00:05.6]} 55. Nh3 {[%clk 0:00:07.8]} 55...
Ke5 {[%clk 0:00:04]} 56. Nf4 {[%clk 0:00:07.6]} 56... Kf6 {[%clk 0:00:04.6]} 57.
Nh3 {[%clk 0:00:07.2]} 57... Ra4 {[%clk 0:00:04.5]} 58. Nf4 {[%clk 0:00:07.2]}
58... Rxf4 {[%clk 0:00:04.7]} 59. gxf4 {[%clk 0:00:06.8]} 59... Ke6 {[%clk
0:00:05.6]} 60. Kf3 {[%clk 0:00:06.8]} 60... Kd5 {[%clk 0:00:06.5]} 61. Ke3
{[%clk 0:00:06.7]} 61... Kc4 {[%clk 0:00:06.8]} 62. Kd2 {[%clk 0:00:06]} 62...
Kd4 {[%clk 0:00:07.3]} 63. f3 {[%clk 0:00:06.1]} 63... Kc4 {[%clk 0:00:06.8]}
64. Kc2 {[%clk 0:00:06]} 64... Kd4 {[%clk 0:00:07.4]} 65. Kd2 {[%clk 0:00:05.9]}
65... Kc4 {[%clk 0:00:06.9]} 66. Kc2 {[%clk 0:00:05.9]} 66... Kb4 {[%clk
0:00:06.9]} 67. Kb2 {[%clk 0:00:05.7]} 67... Kc4 {[%clk 0:00:07.1]} 68. Kc2
{[%clk 0:00:05.6]} 1/2-1/2

[Event "*** Titled Tuesday Blitz"]
[Site "Chess.com"]
[Date "2021.04.27"]
[Round "2"]
[White "BahadirOzen"]
[Black "UKR_Master"]
[Result "1/2-1/2"]
[WhiteElo "2673"]
[BlackElo "2488"]
[TimeControl "180+1"]
[EndTime "10:19:53 PDT"]
[Termination "Game drawn by repetition"]

1. g3 {[%clk 0:03:00.9]} 1... d5 {[%clk 0:02:57.7]} 2. Bg2 {[%clk 0:03:00.9]}
2... g6 {[%clk 0:02:58.3]} 3. Nf3 {[%clk 0:03:00.9]} 3... Bg7 {[%clk 0:02:58.7]}
4. d4 {[%clk 0:03:01.5]} 4... Nf6 {[%clk 0:02:58.5]} 5. O-O {[%clk 0:03:02]}
5... O-O {[%clk 0:02:57.3]} 6. c4 {[%clk 0:03:02.2]} 6... dxc4 {[%clk
0:02:58.2]} 7. Na3 {[%clk 0:03:01.4]} 7... c3 {[%clk 0:02:58.6]} 8. bxc3 {[%clk
0:03:00.6]} 8... c5 {[%clk 0:02:59.1]} 9. Ne5 {[%clk 0:03:01]} 9... Nfd7 {[%clk
0:02:40.1]} 10. Nac4 {[%clk 0:03:00.1]} 10... Nxe5 {[%clk 0:02:39.9]} 11. Nxe5
{[%clk 0:02:59.8]} 11... Nd7 {[%clk 0:02:40.1]} 12. Nxd7 {[%clk 0:02:51.3]}
12... Qxd7 {[%clk 0:02:37.5]} 13. e3 {[%clk 0:02:19.4]} 13... Rb8 {[%clk
0:02:34.2]} 14. Ba3 {[%clk 0:02:15.8]} 14... cxd4 {[%clk 0:02:29.3]} 15. cxd4
{[%clk 0:02:16.7]} 15... b6 {[%clk 0:02:29.5]} 16. Rc1 {[%clk 0:02:12.6]} 16...
Ba6 {[%clk 0:02:27]} 17. Re1 {[%clk 0:02:09.9]} 17... Rfc8 {[%clk 0:02:27.6]}
18. Qb3 {[%clk 0:02:05.6]} 18... e6 {[%clk 0:02:24.8]} 19. h4 {[%clk 0:02:03.9]}
19... h5 {[%clk 0:02:24.5]} 20. Bf3 {[%clk 0:01:54.9]} 20... Rxc1 {[%clk
0:02:05.9]} 21. Rxc1 {[%clk 0:01:54.4]} 21... Rc8 {[%clk 0:02:06.5]} 22. Rc2
{[%clk 0:01:47.7]} 22... Bb7 {[%clk 0:01:57.8]} 23. Rxc8+ {[%clk 0:01:24.6]}
23... Qxc8 {[%clk 0:01:47.5]} 24. Bxb7 {[%clk 0:01:13.4]} 24... Qxb7 {[%clk
0:01:48.4]} 25. Bd6 {[%clk 0:01:12.4]} 25... Qc6 {[%clk 0:01:28.1]} 26. Bb8
{[%clk 0:01:07.6]} 26... a6 {[%clk 0:01:26.2]} 27. Ba7 {[%clk 0:01:01.9]} 27...
b5 {[%clk 0:01:26.1]} 28. Bc5 {[%clk 0:01:02.8]} 28... Bf8 {[%clk 0:01:26.3]}
29. Bxf8 {[%clk 0:01:00.4]} 29... Kxf8 {[%clk 0:01:27.2]} 30. Qa3+ {[%clk
0:00:59.9]} 30... Ke8 {[%clk 0:01:24.8]} 31. Qa5 {[%clk 0:00:58.3]} 31... Qc1+
{[%clk 0:01:15.3]} 32. Kg2 {[%clk 0:00:58.3]} 32... Qc6+ {[%clk 0:01:15.8]} 33.
Kg1 {[%clk 0:00:58.7]} 33... Kd7 {[%clk 0:01:15.4]} 34. Qa3 {[%clk 0:00:55.8]}
34... Qd6 {[%clk 0:01:08.6]} 35. Qa5 {[%clk 0:00:54]} 35... Kc8 {[%clk
0:01:08.6]} 36. e4 {[%clk 0:00:27.6]} 36... Kb7 {[%clk 0:01:00.5]} 37. Qc3
{[%clk 0:00:27.6]} 37... Qc6 {[%clk 0:00:57.7]} 38. Qf3 {[%clk 0:00:27]} 38...
f5 {[%clk 0:00:56.7]} 39. d5 {[%clk 0:00:27.5]} 39... exd5 {[%clk 0:00:48.3]}
40. exd5 {[%clk 0:00:27.6]} 40... Qd6 {[%clk 0:00:45.6]} 41. Qd3 {[%clk
0:00:26.8]} 41... Kc7 {[%clk 0:00:38.3]} 42. Qd4 {[%clk 0:00:26.6]} 42... Kb7
{[%clk 0:00:33.7]} 43. Qd3 {[%clk 0:00:26]} 43... Kb6 {[%clk 0:00:31.6]} 44.
Qd4+ {[%clk 0:00:26.2]} 44... Ka5 {[%clk 0:00:28.6]} 45. Qc3+ {[%clk 0:00:23.9]}
45... b4 {[%clk 0:00:23.5]} 46. Qc4 {[%clk 0:00:20]} 46... Kb6 {[%clk
0:00:21.9]} 47. Kf1 {[%clk 0:00:11.1]} 47... Qc5 {[%clk 0:00:21.1]} 48. Qb3
{[%clk 0:00:10.2]} 48... Qc1+ {[%clk 0:00:17.3]} 49. Kg2 {[%clk 0:00:10.2]}
49... Qc3 {[%clk 0:00:16.4]} 50. Qa4 {[%clk 0:00:08.8]} 50... Qc4 {[%clk
0:00:14.1]} 51. Qd7 {[%clk 0:00:09]} 51... Qe4+ {[%clk 0:00:14.4]} 52. Kg1
{[%clk 0:00:08.4]} 52... Qb1+ {[%clk 0:00:14.3]} 53. Kg2 {[%clk 0:00:08.7]}
53... Qe4+ {[%clk 0:00:14.8]} 54. Kg1 {[%clk 0:00:08.7]} 54... Kc5 {[%clk
0:00:12.5]} 55. Qc6+ {[%clk 0:00:08.8]} 55... Kd4 {[%clk 0:00:12.4]} 56. Qxa6
{[%clk 0:00:07.2]} 56... Qxd5 {[%clk 0:00:09.8]} 57. Qe2 {[%clk 0:00:07.6]}
57... Qc4 {[%clk 0:00:08.2]} 58. Qb2+ {[%clk 0:00:07.6]} 58... Kc5 {[%clk
0:00:08.3]} 59. Qe5+ {[%clk 0:00:07.3]} 59... Qd5 {[%clk 0:00:08.9]} 60. Qc7+
{[%clk 0:00:07.1]} 60... Qc6 {[%clk 0:00:08.5]} 61. Qe5+ {[%clk 0:00:07]} 61...
Kb6 {[%clk 0:00:08.5]} 62. Qd4+ {[%clk 0:00:06.9]} 62... Ka6 {[%clk 0:00:08.6]}
63. Qd3+ {[%clk 0:00:05.7]} 63... Qb5 {[%clk 0:00:08.1]} 64. Qd6+ {[%clk
0:00:05.8]} 64... Qb6 {[%clk 0:00:08.6]} 65. Qd3+ {[%clk 0:00:06]} 65... Ka5
{[%clk 0:00:09.3]} 66. Qd5+ {[%clk 0:00:06.1]} 66... Qb5 {[%clk 0:00:08.2]} 67.
Qa8+ {[%clk 0:00:06.5]} 67... Qa6 {[%clk 0:00:08.2]} 68. Qd5+ {[%clk 0:00:06.5]}
68... Qb5 {[%clk 0:00:06.7]} 69. Qa8+ {[%clk 0:00:06.5]} 69... Qa6 {[%clk
0:00:05.8]} 70. Qd5+ {[%clk 0:00:06.3]} 70... Qb5 {[%clk 0:00:03.5]} 1/2-1/2

[Event "*** Titled Tuesday Blitz"]
[Site "Chess.com"]
[Date "2021.04.27"]
[Round "2"]
[White "gurelediz"]
[Black "NiranjanNavalgund"]
[Result "1-0"]
[WhiteElo "2677"]
[BlackElo "2475"]
[TimeControl "180+1"]
[EndTime "10:19:53 PDT"]
[Termination "gurelediz won by checkmate"]

1. e4 {[%clk 0:03:00.9]} 1... e5 {[%clk 0:02:59.2]} 2. Nf3 {[%clk 0:03:00.7]}
2... Nc6 {[%clk 0:02:59.7]} 3. Bb5 {[%clk 0:02:59.8]} 3... a6 {[%clk 0:02:59.3]}
4. Ba4 {[%clk 0:02:57.9]} 4... Nf6 {[%clk 0:02:59.2]} 5. O-O {[%clk 0:02:57.5]}
5... Be7 {[%clk 0:02:59.4]} 6. Re1 {[%clk 0:02:57.8]} 6... b5 {[%clk 0:02:59.9]}
7. Bb3 {[%clk 0:02:58.1]} 7... d6 {[%clk 0:03:00.8]} 8. c3 {[%clk 0:02:58.1]}
8... O-O {[%clk 0:03:01]} 9. h3 {[%clk 0:02:58.1]} 9... Nb8 {[%clk 0:03:00.9]}
10. d4 {[%clk 0:02:57.6]} 10... Nbd7 {[%clk 0:03:01.2]} 11. Nbd2 {[%clk
0:02:57.9]} 11... Bb7 {[%clk 0:03:01.1]} 12. Bc2 {[%clk 0:02:56.4]} 12... Re8
{[%clk 0:03:01]} 13. Nf1 {[%clk 0:02:56.5]} 13... Bf8 {[%clk 0:02:59.8]} 14. Ng3
{[%clk 0:02:57]} 14... g6 {[%clk 0:03:00.2]} 15. Bg5 {[%clk 0:02:56.4]} 15...
Bg7 {[%clk 0:02:58.3]} 16. Qc1 {[%clk 0:02:56.4]} 16... Qe7 {[%clk 0:02:51.9]}
17. Bh6 {[%clk 0:02:55.4]} 17... Qf8 {[%clk 0:02:52]} 18. Bxg7 {[%clk
0:02:50.1]} 18... Qxg7 {[%clk 0:02:52.2]} 19. a4 {[%clk 0:02:51]} 19... Nb6
{[%clk 0:02:47.8]} 20. axb5 {[%clk 0:02:45.8]} 20... axb5 {[%clk 0:02:48.7]} 21.
Bd3 {[%clk 0:02:44.3]} 21... c6 {[%clk 0:02:43.4]} 22. Rxa8 {[%clk 0:02:36.3]}
22... Bxa8 {[%clk 0:02:41.5]} 23. Qa1 {[%clk 0:02:36.2]} 23... Nfd7 {[%clk
0:02:25.9]} 24. Qa7 {[%clk 0:02:29.3]} 24... Qf6 {[%clk 0:02:13.4]} 25. Ra1
{[%clk 0:02:16]} 25... Qd8 {[%clk 0:02:00.6]} 26. Kf1 {[%clk 0:02:09.5]} 26...
Qb8 {[%clk 0:01:56.3]} 27. Ke2 {[%clk 0:02:05.8]} 27... Rc8 {[%clk 0:01:47.6]}
28. Nf1 {[%clk 0:01:53.2]} 28... Qc7 {[%clk 0:01:43]} 29. Ne3 {[%clk 0:01:49.1]}
29... Bb7 {[%clk 0:01:41.8]} 30. Qa2 {[%clk 0:01:41]} 30... Ra8 {[%clk
0:01:39.6]} 31. Qb1 {[%clk 0:01:41.1]} 31... Na4 {[%clk 0:01:31.6]} 32. Qc1
{[%clk 0:01:27]} 32... Qa5 {[%clk 0:01:25.3]} 33. Nc2 {[%clk 0:01:14.5]} 33...
c5 {[%clk 0:01:19.6]} 34. dxc5 {[%clk 0:00:47]} 34... dxc5 {[%clk 0:00:56.8]}
35. Ke1 {[%clk 0:00:40.6]} 35... c4 {[%clk 0:00:54.6]} 36. Be2 {[%clk
0:00:32.9]} 36... Bxe4 {[%clk 0:00:55]} 37. Nb4 {[%clk 0:00:29.4]} 37... Kg7
{[%clk 0:00:51]} 38. Qe3 {[%clk 0:00:20.2]} 38... Bxf3 {[%clk 0:00:44.4]} 39.
Bxf3 {[%clk 0:00:19.5]} 39... Re8 {[%clk 0:00:44.2]} 40. Bc6 {[%clk 0:00:18.9]}
40... Qc7 {[%clk 0:00:34.7]} 41. Rd1 {[%clk 0:00:12.3]} 41... Ndc5 {[%clk
0:00:32.9]} 42. Bxe8 {[%clk 0:00:10.4]} 42... Nxb2 {[%clk 0:00:32]} 43. Rd5
{[%clk 0:00:09.2]} 43... Nbd3+ {[%clk 0:00:30.9]} 44. Nxd3 {[%clk 0:00:09.4]}
44... Nxd3+ {[%clk 0:00:31.8]} 45. Kf1 {[%clk 0:00:07.8]} 45... Qa5 {[%clk
0:00:27.1]} 46. Kg1 {[%clk 0:00:08.2]} 46... Qa8 {[%clk 0:00:25.4]} 47. Rxe5
{[%clk 0:00:06.5]} 47... Nxe5 {[%clk 0:00:24.2]} 48. Qxe5+ {[%clk 0:00:07.4]}
48... Kf8 {[%clk 0:00:24.6]} 49. Bxb5 {[%clk 0:00:07.5]} 49... Qa1+ {[%clk
0:00:23.4]} 50. Kh2 {[%clk 0:00:07.9]} 50... Qf1 {[%clk 0:00:23.1]} 51. Qc5+
{[%clk 0:00:05.6]} 51... Kg7 {[%clk 0:00:22.1]} 52. Bxc4 {[%clk 0:00:05.5]}
52... Qe1 {[%clk 0:00:20.4]} 53. Qd4+ {[%clk 0:00:05.8]} 53... Kg8 {[%clk
0:00:20.1]} 54. Qd8+ {[%clk 0:00:05.7]} 54... Kg7 {[%clk 0:00:20.5]} 55. Qd4+
{[%clk 0:00:06.6]} 55... Kg8 {[%clk 0:00:20.9]} 56. Qf6 {[%clk 0:00:07.2]} 56...
Qe8 {[%clk 0:00:20.1]} 57. Bd5 {[%clk 0:00:07.4]} 57... Qd7 {[%clk 0:00:19.5]}
58. c4 {[%clk 0:00:07.4]} 58... Qc7+ {[%clk 0:00:19.5]} 59. g3 {[%clk
0:00:07.6]} 59... Qa7 {[%clk 0:00:19.3]} 60. c5 {[%clk 0:00:07]} 60... Kf8
{[%clk 0:00:19.3]} 61. Qh8+ {[%clk 0:00:05.3]} 61... Ke7 {[%clk 0:00:19.7]} 62.
Qe5+ {[%clk 0:00:06.2]} 62... Kf8 {[%clk 0:00:20.3]} 63. Qd6+ {[%clk 0:00:06.5]}
63... Kg7 {[%clk 0:00:20.3]} 64. Kg2 {[%clk 0:00:06.8]} 64... Qa1 {[%clk
0:00:18.8]} 65. c6 {[%clk 0:00:06.7]} 65... Qc3 {[%clk 0:00:18.8]} 66. c7 {[%clk
0:00:07]} 66... h5 {[%clk 0:00:18.6]} 67. Qd7 {[%clk 0:00:07.4]} 67... Qc5
{[%clk 0:00:18.6]} 68. Qxf7+ {[%clk 0:00:07.3]} 68... Kh6 {[%clk 0:00:18.5]} 69.
Qd7 {[%clk 0:00:07]} 69... h4 {[%clk 0:00:18.8]} 70. c8=Q {[%clk 0:00:06.2]}
70... hxg3 {[%clk 0:00:18.8]} 71. Qxc5 {[%clk 0:00:06.1]} 71... gxf2 {[%clk
0:00:18.7]} 72. Qe3+ {[%clk 0:00:05.6]} 72... g5 {[%clk 0:00:18.2]} 73. Qee6+
{[%clk 0:00:06.2]} 73... Kh5 {[%clk 0:00:18.2]} 74. Qh7# {[%clk 0:00:07.1]} 1-0

[Event "*** Titled Tuesday Blitz"]
[Site "Chess.com"]
[Date "2021.04.27"]
[Round "2"]
[White "dragos420"]
[Black "A-Fier"]
[Result "0-1"]
[WhiteElo "2559"]
[BlackElo "2832"]
[TimeControl "180+1"]
[EndTime "10:20:03 PDT"]
[Termination "A-Fier won by resignation"]

1. e4 {[%clk 0:03:00.9]} 1... c5 {[%clk 0:02:59.8]} 2. Nf3 {[%clk 0:03:00.3]}
2... d6 {[%clk 0:02:58.5]} 3. d4 {[%clk 0:03:00.3]} 3... cxd4 {[%clk 0:02:59]}
4. Nxd4 {[%clk 0:03:01.2]} 4... Nf6 {[%clk 0:02:59.4]} 5. Nc3 {[%clk 0:02:59.8]}
5... e6 {[%clk 0:02:59.7]} 6. Be3 {[%clk 0:02:57.4]} 6... Be7 {[%clk 0:02:58.8]}
7. f3 {[%clk 0:02:56.4]} 7... O-O {[%clk 0:02:58.5]} 8. Qd2 {[%clk 0:02:56.7]}
8... Nc6 {[%clk 0:02:59]} 9. g4 {[%clk 0:02:54.9]} 9... a6 {[%clk 0:02:59]} 10.
O-O-O {[%clk 0:02:45.9]} 10... Nd7 {[%clk 0:02:58]} 11. h4 {[%clk 0:02:40.1]}
11... Nde5 {[%clk 0:02:58.3]} 12. Qf2 {[%clk 0:02:35.3]} 12... Nxd4 {[%clk
0:02:58.2]} 13. Bxd4 {[%clk 0:02:36.2]} 13... Bd7 {[%clk 0:02:51.8]} 14. g5
{[%clk 0:02:24.6]} 14... b5 {[%clk 0:02:51]} 15. f4 {[%clk 0:02:19.5]} 15... Nc6
{[%clk 0:02:49.9]} 16. f5 {[%clk 0:01:47.2]} 16... Nxd4 {[%clk 0:02:48.3]} 17.
Rxd4 {[%clk 0:01:43.1]} 17... b4 {[%clk 0:02:30.7]} 18. Ne2 {[%clk 0:01:17.9]}
18... Re8 {[%clk 0:02:14.8]} 19. f6 {[%clk 0:01:09.7]} 19... Bf8 {[%clk
0:02:08.9]} 20. Ng3 {[%clk 0:01:05.3]} 20... Qb6 {[%clk 0:02:05]} 21. Qd2 {[%clk
0:00:53.2]} 21... e5 {[%clk 0:01:55.3]} 22. Rd5 {[%clk 0:00:52.9]} 22... Be6
{[%clk 0:01:55]} 23. Bc4 {[%clk 0:00:40.8]} 23... Rac8 {[%clk 0:01:53.3]} 24.
Bb3 {[%clk 0:00:39.6]} 24... a5 {[%clk 0:01:51.8]} 25. fxg7 {[%clk 0:00:32.9]}
25... Bxg7 {[%clk 0:01:47.7]} 26. Rxd6 {[%clk 0:00:33.2]} 26... Qc5 {[%clk
0:01:43.1]} 27. Nf5 {[%clk 0:00:22.1]} 27... Bxf5 {[%clk 0:01:31.3]} 28. exf5
{[%clk 0:00:23]} 28... a4 {[%clk 0:01:32.1]} 29. Bxa4 {[%clk 0:00:13.9]} 29...
e4 {[%clk 0:01:30]} 30. Bxe8 {[%clk 0:00:13.4]} 30... e3 {[%clk 0:01:30.5]} 31.
Qd3 {[%clk 0:00:12.7]} 31... Rxe8 {[%clk 0:01:24.5]} 32. f6 {[%clk 0:00:13.2]}
32... Bf8 {[%clk 0:01:22.6]} 33. Rd5 {[%clk 0:00:13.8]} 33... Qc6 {[%clk
0:01:21.1]} 34. Re1 {[%clk 0:00:14.4]} 34... e2 {[%clk 0:01:20.8]} 35. Rd8
{[%clk 0:00:14.3]} 35... Rxd8 {[%clk 0:01:08.4]} 36. Qxd8 {[%clk 0:00:15.2]}
36... Qe4 {[%clk 0:01:08.9]} 37. Qd3 {[%clk 0:00:14.9]} 37... Qxh4 {[%clk
0:01:08.1]} 38. Qxe2 {[%clk 0:00:14.4]} 38... Qxg5+ {[%clk 0:01:08.1]} 39. Qe3
{[%clk 0:00:14.9]} 39... Qxf6 {[%clk 0:01:05.6]} 40. Rg1+ {[%clk 0:00:14.7]}
40... Kh8 {[%clk 0:01:05.5]} 41. Kb1 {[%clk 0:00:15]} 41... h6 {[%clk
0:01:03.6]} 42. Rh1 {[%clk 0:00:14]} 42... Bg7 {[%clk 0:01:03.7]} 43. c3 {[%clk
0:00:13.6]} 43... Qf5+ {[%clk 0:01:00.8]} 44. Ka1 {[%clk 0:00:11]} 44... bxc3
{[%clk 0:01:01.3]} 45. bxc3 {[%clk 0:00:11.9]} 45... Qf6 {[%clk 0:00:57.4]} 46.
Qe8+ {[%clk 0:00:11.7]} 46... Kh7 {[%clk 0:00:56.9]} 47. Qe4+ {[%clk 0:00:12.2]}
47... Kh8 {[%clk 0:00:57.3]} 48. Qe8+ {[%clk 0:00:12.5]} 48... Kh7 {[%clk
0:00:53.4]} 49. Qe4+ {[%clk 0:00:12.6]} 49... Kg8 {[%clk 0:00:53.8]} 50. Qe8+
{[%clk 0:00:12]} 50... Bf8 {[%clk 0:00:42.9]} 51. Rg1+ {[%clk 0:00:09.9]} 51...
Kh7 {[%clk 0:00:43.7]} 52. Qxf8 {[%clk 0:00:06.6]} 52... Qxc3+ {[%clk
0:00:44.2]} 53. Kb1 {[%clk 0:00:07.2]} 53... Qd3+ {[%clk 0:00:44.1]} 54. Kb2
{[%clk 0:00:06.7]} 54... Qd4+ {[%clk 0:00:44.6]} 55. Kb3 {[%clk 0:00:06.1]}
55... Qe3+ {[%clk 0:00:44.3]} 56. Kc4 {[%clk 0:00:04.5]} 56... Qxg1 {[%clk
0:00:42.8]} 57. Qxf7+ {[%clk 0:00:04.7]} 57... Kh8 {[%clk 0:00:43.4]} 58. Qf8+
{[%clk 0:00:05]} 58... Kh7 {[%clk 0:00:43.7]} 59. Qe7+ {[%clk 0:00:03.5]} 59...
Kg6 {[%clk 0:00:42.8]} 60. Qe6+ {[%clk 0:00:03.9]} 60... Kg7 {[%clk 0:00:41.9]}
61. Qe7+ {[%clk 0:00:04.1]} 61... Kg6 {[%clk 0:00:42.1]} 62. Qe6+ {[%clk
0:00:04.6]} 62... Kh5 {[%clk 0:00:41.2]} 63. Qf5+ {[%clk 0:00:03.7]} 63... Kh4
{[%clk 0:00:41.6]} 64. Qf6+ {[%clk 0:00:04.1]} 64... Kh5 {[%clk 0:00:40.5]} 65.
Qf5+ {[%clk 0:00:04.2]} 65... Qg5 {[%clk 0:00:39.9]} 66. Qh3+ {[%clk 0:00:03.3]}
66... Kg6 {[%clk 0:00:40.1]} 67. Qe6+ {[%clk 0:00:03.9]} 67... Kg7 {[%clk
0:00:40.6]} 68. Qd7+ {[%clk 0:00:03.8]} 68... Kf6 {[%clk 0:00:41.2]} 69. Qd8+
{[%clk 0:00:03.9]} 69... Kf5 {[%clk 0:00:41.4]} 70. Qxg5+ {[%clk 0:00:04.8]}
70... hxg5 {[%clk 0:00:41]} 71. a4 {[%clk 0:00:05.7]} 71... g4 {[%clk
0:00:41.1]} 72. a5 {[%clk 0:00:06.6]} 72... g3 {[%clk 0:00:39.4]} 73. a6 {[%clk
0:00:07.5]} 73... g2 {[%clk 0:00:40]} 74. a7 {[%clk 0:00:08.4]} 74... g1=Q
{[%clk 0:00:40.7]} 75. a8=Q {[%clk 0:00:09.3]} 75... Qc1+ {[%clk 0:00:40.9]} 76.
Kb4 {[%clk 0:00:09.1]} 76... Qb2+ {[%clk 0:00:40.8]} 77. Kc4 {[%clk 0:00:09.6]}
77... Qc2+ {[%clk 0:00:40.1]} 78. Kb4 {[%clk 0:00:10.2]} 78... Qd2+ {[%clk
0:00:39.4]} 79. Kc4 {[%clk 0:00:10.5]} 79... Qf4+ {[%clk 0:00:39.7]} 80. Kb3
{[%clk 0:00:10.4]} 80... Qe3+ {[%clk 0:00:39.6]} 81. Kc4 {[%clk 0:00:10.8]}
81... Qe2+ {[%clk 0:00:39.7]} 82. Kb4 {[%clk 0:00:10.7]} 82... Qd2+ {[%clk
0:00:39.6]} 83. Kc4 {[%clk 0:00:11.2]} 83... Qc1+ {[%clk 0:00:39]} 84. Kb4
{[%clk 0:00:11.4]} 84... Qb1+ {[%clk 0:00:39.6]} 85. Kc4 {[%clk 0:00:12.2]}
85... Qe4+ {[%clk 0:00:40.1]} 86. Kb3 {[%clk 0:00:12.3]} 86... Qxa8 {[%clk
0:00:40.1]} 0-1